Cogmind - Beta 11.1 @@@ ROGUE MODE // 2022.06.21 @ 00:11:03 Player: ChromeKnight Result: Destroyed by G-47 Trooper with Particle Gun Performance ------------- Evolutions (0) 0 Regions Visited (2) 400 Robots Destroyed (19) 95 Value Destroyed (303) 303 Prototype IDs (0) 0 Alien Tech Used (0) 0 Bonus (0) 0 TOTAL SCORE: 798 Bonus ------- None Cogmind --------- Core Integrity 0/250 Matter 290/300 Energy 60/100 System Corruption 0% Temperature Cool (9) Movement Core (50) Location -10/Mines Parts ------- > --- POWER (1) -------- (None) > --- PROPULSION (2) --- (None) > --- UTILITY (2) ------ Hacking Suite > --- WEAPON (2) ------- (None) > --- INVENTORY (5) ---- Improved Hover Unit Improved Hover Unit Sensor Array Signal Interpreter Heavy Assault Rifle Peak State ------------ > --- POWER ------------ (None) > --- PROPULSION ------- Improved Hover Unit Improved Hover Unit > --- UTILITY ---------- Medium Storage Unit Sensor Array > --- WEAPON ----------- Heavy Assault Rifle Heavy Assault Rifle > --- INVENTORY -------- Improved Hover Unit Improved Hover Unit Sensor Array Signal Interpreter ECM Suite Hacking Suite Heavy Assault Rifle Heavy Assault Rifle [Rating: 11] Favorites ----------- Power Light Ion Engine Engine Light Ion Engine Propulsion Light Treads Treads Light Treads Hover Unit Hover Unit Flight Unit Flight Unit Utility Medium Storage Unit Device Sensor Array Storage Medium Storage Unit Weapon Light Assault Rifle Ballistic Gun Light Assault Rifle Build | -11 -10 -10 ------- Run | Scr Mat Min Slots Evolved . | . . . Power . | . . . Propulsion . | . . . Utility . | . . . Weapon . | . . . Parts Attached 24 | 6 15 3 Power 2 | 1 1 . Engine 2 | 1 1 . Core . | . . . Reactor . | . . . Propulsion 9 | 2 5 2 Treads 4 | 2 2 . Leg . | . . . Wheel . | . . . Hover 3 | . 1 2 Flight 2 | . 2 . Utility 4 | 1 2 1 Device 1 | . 1 . Storage 2 | 1 1 . Processor . | . . . Hackware 1 | . . 1 Protection . | . . . Artifact . | . . . Weapon 9 | 2 7 . Energy Gun . | . . . Energy Cannon . | . . . Ballistic Gun 9 | 2 7 . Ballistic Cannon . | . . . Launcher . | . . . Special Weapon . | . . . Impact Weapon . | . . . Slashing Weapon . | . . . Piercing Weapon . | . . . Special Melee Weapon . | . . . Unidentified Prototypes . | . . . Parts Lost 8 | . 5 3 Power 2 | . 2 . Propulsion 4 | . 2 2 Utility 1 | . . 1 Weapon 1 | . 1 . Highest Loss Streak 3 | . 2 3 To Critical Strikes 2 | . 2 . Average Slot Usage (%) 76 | . 76 67 Engine 6 | . 7 . Treads 15 | . 16 . Hover 5 | . 5 17 Device 5 | . 5 14 Storage 14 | . 14 14 Ballistic Gun 27 | . 27 21 Naked Turns 1 | . . 1 Heaviest Build 17 | 10 17 17 Greatest Support 40 | 40 40 14 Greatest Overweight (x) 2 | 1 2 2 Average Overweight (x) . | . . . Largest Inventory Capacity 10 | 8 10 10 Average Capacity 9 | 7 9 9 Most Carried 10 | . 10 10 Average Carried 6 | . 6 9 Final Capacity 10 | 8 10 5 Final Carried 10 | . 10 5 Class Distribution -------------------- 92% | Mutant 7% | Scavenger-Mutant Dominant Class ---------------- Mutant | -10/Materials Mutant | -10/Mines Resources | -11 -10 -10 ----------- Run | Scr Mat Min Matter Collected 593 | 247 314 32 Remotely . | . . . Salvage Created 562 | . 527 35 Parts 36 | . 31 5 Haulers Intercepted 2 | . 2 . Recyclers Shooed 1 | . 1 . Parts Field Recycled . | . . . Retrieved Matter . | . . . Parts Self-Destructed . | . . . Prevented . | . . . Kills | -11 -10 -10 ------- Run | Scr Mat Min Combat Hostiles Destroyed 12 | . 10 2 Guns 12 | . 10 2 Classes Destroyed 8 | . 8 . Worker 1 | . 1 . Tunneler 1 | . 1 . Hauler 2 | . 2 . Recycler 1 | . 1 . Operator 1 | . 1 . Watcher 1 | . 1 . Swarmer 7 | . 5 2 Grunt 5 | . 5 . Best Kill Streak 3 | . 3 2 Combat Bots Only 3 | . 3 2 Max Kills in Single Turn 1 | . 1 1 Gunslinging . | . . . Exploded . | . . . Melee . | . . . Uniques/NPCs Destroyed . | . . . Combat | -11 -10 -10 -------- Run | Scr Mat Min Damage Taken 1227 | . 903 324 Core 263 | . 167 96 Absorbed by Shields . | . . . Core Remaining (%) 100 | 100 . . Volleys Fired 87 | . 84 3 Largest 2 | . 2 2 Hottest 46 | . 46 46 Shots Fired 166 | . 161 5 Gun 166 | . 161 5 Cannon . | . . . Launcher . | . . . Special . | . . . Kinetic 166 | . 161 5 Thermal . | . . . Explosive . | . . . Electromagnetic . | . . . Robot Hit Streak 14 | . 14 2 Robot Miss Streak 10 | . 10 1 Penetration Max . | . . . Secondary Targets 2 | . 2 . Max Gunslinging Chain 1 | . 1 . Shots Hit Robots 99 | . 96 3 Core Hits 40 | . 38 2 Critical Kills . | . . . Critical Parts Destroyed 1 | . 1 . Critical Strikes 1 | . 1 . Destroy 1 | . 1 . Melee Attacks . | . . . Impact . | . . . Slashing . | . . . Piercing . | . . . Sneak Attacks . | . . . Combat Hostiles . | . . . Follow-up Attacks . | . . . Damage Inflicted 903 | . 854 49 Guns 903 | . 854 49 Cannons . | . . . Explosions . | . . . Melee . | . . . Ramming . | . . . Kinetic 903 | . 854 49 Thermal . | . . . Explosive . | . . . Electromagnetic . | . . . Impact . | . . . Slashing . | . . . Piercing . | . . . Highest Corruption . | . . . Average Corruption . | . . . Corruption Purged . | . . . Corruption Blocked . | . . . Overload Shots . | . . . Overflow Damage . | . . . Projectiles . | . . . Explosions . | . . . Melee . | . . . Knockbacks . | . . . Impact . | . . . Kinetic . | . . . Secondary . | . . . Self-Inflicted Damage . | . . . Shots . | . . . Rammed . | . . . Targets Rammed . | . . . Kicked . | . . . Crushed . | . . . Highest Temperature 33 | . 33 . Average Temperature 11 | . 11 . Received Heat Transfer 279 | . 240 39 Siege Activations . | . . . Robots Corrupted . | . . . Combat Hostiles . | . . . Parts Fried . | . . . Impact Corruptions . | . . . Robots Melted . | . . . Combat Hostiles . | . . . Parts Melted . | . . . Heat Transferred . | . . . Parts Sabotaged . | . . . Parts Stolen . | . . . Parts Stripped . | . . . Power Chain Reactions . | . . . Missiles Intercepted . | . . . Alert | -11 -10 -10 ------- Run | Scr Mat Min Peak Influence 144 | . 144 54 Initial 4 | . . 4 Average 31 | . 33 44 Maximum Alert Level . | . . . Low Security (%) 100 | 100 100 100 Level 1 . | . . . Level 2 . | . . . Level 3 . | . . . Level 4 . | . . . Level 5 . | . . . High Security . | . . . Max Security . | . . . Squads Dispatched 1 | . 1 . Investigation 1 | . 1 . Extermination . | . . . Reinforcement . | . . . Assault . | . . . Garrison . | . . . Intercept . | . . . Searches Triggered . | . . . Construction Impeded . | . . . Haulers Reinforced . | . . . Active Scanning Responses . | . . . Cargo Convoy Interrupts . | . . . Stealth | -11 -10 -10 --------- Run | Scr Mat Min Distress Signals . | . . . Communications Jammed . | . . . Distress Signals . | . . . Times Spotted 26 | . 18 8 Peak Tracking Total 4 | . 3 4 Tactical Retreats . | . . . Traps | -11 -10 -10 ------- Run | Scr Mat Min Traps Triggered 1 | . 1 . Indirectly . | . . . Trap Hack Attempts . | . . . Triggered . | . . . Disarmed . | . . . Reprogrammed . | . . . Reused . | . . . Traps Extracted . | . . . Installed . | . . . Triggered . | . . . Machines | -11 -10 -10 ---------- Run | Scr Mat Min Machines Disabled . | . . . Max in Single Turn . | . . . Machines Sabotaged . | . . . Garrisons Compromised . | . . . Overloaded Fab Kills . | . . . Hacking | -11 -10 -10 --------- Run | Scr Mat Min Machines Accessed 7 | . 7 . Terminals 7 | . 7 . Fabricators . | . . . Repair Stations . | . . . Recycling Units . | . . . Scanalyzers . | . . . Garrison Access . | . . . Total Hacks 16 | . 16 . Successful 8 | . 8 . Failed 8 | . 8 . Catastrophic . | . . . Database Lockouts . | . . . Manual 15 | . 15 . Terminals 16 | . 16 . Fabricators . | . . . Repair Stations . | . . . Recycling Units . | . . . Scanalyzers . | . . . Garrison Access . | . . . Terminal Hacks . | . . . Fabricator Hacks . | . . . Repair Station Hacks . | . . . Recycling Unit Hacks . | . . . Scanalyzer . | . . . Garrison Access Hacks . | . . . Unauthorized Hacks 8 | . 8 . Terminals 8 | . 8 . Assimilate 2 | . 2 . Botnet 4 | . 4 . Operators 2 | . 2 . Fabricators . | . . . Repair Stations . | . . . Recycling Units . | . . . Scanalyzers . | . . . Garrison Access . | . . . Data Cores Recovered . | . . . Used . | . . . Hacking Detections 5 | . 5 . Full Trace Events 1 | . 1 . Feedback Events . | . . . Feedback Blocked . | . . . Robot Schematics Acquired . | . . . Robots Built . | . . . Authchips . | . . . Time . | . . . Total Robot Build Rating . | . . . Part Schematics Acquired . | . . . Parts Built . | . . . Authchips . | . . . Time . | . . . Total Part Build Rating . | . . . Parts Repaired . | . . . Time . | . . . Parts Recycled . | . . . Recycled Matter . | . . . Retrieved Matter . | . . . Retrieved Components . | . . . Parts Scanalyzed . | . . . Part Schematics Acquired . | . . . Parts Damaged . | . . . Bothacking | -11 -10 -10 ------------ Run | Scr Mat Min Used RIF Installer . | . . . Robots Hacked . | . . . Non-combat . | . . . Combat . | . . . Robot Hacks Applied . | . . . Relay Couplers Released . | . . . Fabnet Peak Effective % . | . . . Robots Rewired . | . . . Allies Hacked . | . . . Hacks Repelled . | . . . Allies | -11 -10 -10 -------- Run | Scr Mat Min Total Allies 1 | . 1 . Largest Group 1 | . 1 1 Highest-Rated Group 10 | . 10 10 Highest-Rated Ally 10 | . 10 10 Total Orders . | . . . Ally Attacks . | . . . Total Damage . | . . . Kills . | . . . Allies Corrupted . | . . . Allies Melted . | . . . Intel | -11 -10 -10 ------- Run | Scr Mat Min Robot Analysis Total . | . . . Derelict Logs Recovered . | . . . Drone Launches . | . . . Drone Recoveries . | . . . Exploration | -11 -10 -10 ------------- Run | Scr Mat Min Turns Passed 1538 | 75 1416 47 Spaces Moved 593 | 48 514 31 Core 12 | 11 . 1 Treads 313 | 37 276 . Legs . | . . . Wheels . | . . . Hover 268 | . 238 30 Flight . | . . . Fastest Speed 50 | 50 120 50 Average Speed 163 | 138 168 112 Slowest Speed 180 | 160 180 180 Overloaded Moves . | . . . Propulsion Burnouts . | . . . Robots Hopped . | . . . Cave-ins Triggered . | . . . Exploration Rate (%) 32 | 4 79 13 Regions Visited 2 Branch Regions 1 Pre-discovered Areas . | . . . Known Exits Taken . | . . . Unknown Exits Taken 2 | 1 1 . Scrap Searched 1 | . . 1 Spaces Dug . | . . . Terrain Destroyed . | . . . Melee . | . . . Projectile . | . . . AOE . | . . . Terrain Rammed . | . . . Walls Destroyed . | . . . Machines Disabled . | . . . Actions | -11 -10 -10 --------- Run | Scr Mat Min Total 1031 | 53 937 41 Wait 294 | . 294 . Move 591 | 47 513 31 Hop . | . . . Pick Up 16 | . 16 . Fast Attach 12 | 6 5 1 Attach 5 | . 3 2 Detach 4 | . 3 1 Swap 7 | . 7 . Drop 15 | . 12 3 Fire 87 | . 84 3 Melee . | . . . Ram . | . . . Kick . | . . . Crush . | . . . Escape Stasis . | . . . Rewire . | . . . Trap . | . . . Miscellaneous . | . . . Route ------- -11/Scrapyard -10/Materials (discovered 4 exits: [*Mat x2] / [*Min x2]) -10/Mines (discovered 1 exit: [*Mat]) History --------- Turn | Location | Event 20 | -11/Scrapyard | Discovered new exit (range 14) 76 | -11/Scrapyard | Entered Materials 298 | -10/Materials | Discovered new exit (range 16) 314 | -10/Materials | Build established: Mutant 357 | -10/Materials | Discovered new exit (range 15) 419 | -10/Materials | Discovered new exit (range 16) 857 | -10/Materials | Core integrity fell below 50% 1158 | -10/Materials | Discovered new exit (range 16) 1492 | -10/Materials | Entered Mines 1492 | -10/Mines | Accompanied by 1 ally 1493 | -10/Mines | Assembled infested the area 1498 | -10/Mines | Assisted by a Guerilla fighting off Assembled 1532 | -10/Mines | Core integrity fell below 20% 1536 | -10/Mines | Discovered new exit (range 7) 1539 | -10/Mines | Destroyed by G-47 Trooper with Particle Gun Last Messages --------------- 01525_ Technician 1a destroyed. 01525_ K-01 Serf destroyed. 01526_ The unstable cave ceiling collapses. 01527_ as-47619 destroyed. 01527_ as-41112 destroyed. 01528_ The unstable cave ceiling collapses. 01529_ as-56129 destroyed. 01531_ The unstable cave ceiling collapses. 01531_ Sensor Array destroyed. 01531_ R-06 Scavenger collects Wheel. 01532_ The unstable cave ceiling collapses. 01532_ Dropped Hvy. Assault Rifle. 01533_ R-06 Scavenger collects Imp. Light Armor Plating. 01534_ The unstable cave ceiling collapses. 01536_ EXIT=FOUND 01537_ Imp. Hover Unit destroyed. 01538_ K-01 Serf cleans the Laser Drill. 01538_ Dropped Med. Storage Unit. 01539_ The unstable cave ceiling collapses. 01539_ Acquired Hacking Suite. Map ----- +----------------------------------------------------+ | ?????????# [%*%#????????????? | | ?????????# ###### *%*[##????????????? | | ????????????????## [###?????????????? | | ?????????????????# #???????????????? | | ?????????????????#= #???????????????? | | ?????????????????# #???????????????? | | ????????????????## ###?????????????? | | ???????????????## #????????????? | | ???????????????# % ##???????????? | | ??????????????## # ##??????????? | | ??????????????# ###?????????? | | ??????????????# %# ###????????? | | ???????????????# #?#??????? | | ???????????????# # # #??????? | | ???????????????# # # #??????? | | ???????????????## # % #??????? | | ????????????????## ###??????? | | ?????????????????## #????????? | | ??????????????????### #????????? | | ????????????????????# ##????????? | | ????????????????????# ##???????? | | ????????????????????# #???????? | | ????????????????????# ##??????? | | ??????????????????### #??????? | | ??????????????????# g [# ####????? | | ??????????????????# g!@ #?? | | ??????????????????# ###k #?? | | ??????????????????# ??# #?? | | ??????????????????# ???# k #?? | | ??????????????????#????# """ #?? | | ???????????????????????# < """ #?? | | ???????????????????????# """ #?? | | ???????????????????????# ???? | | ???????????????????????####### ##???? | | ?????????????????????????????? #????? | | ???????????????????????????????#????? | | ????????????????????????????????????? | | ????????????????????????????????????? | | ????????????????????????????????????? | | ????????????????????????????????????? | | ????????????????????????????????????? | | ????????????????????????????????????? | | ????????????????????????????????????? | | ????????????????????????????????????? | | ????????????????????????????????????? | | | | | | | | | | | +----------------------------------------------------+ Best States ------------- Heat Dissipation 25 Energy Generation 10 Energy Capacity 125 Matter Stores 300 Matter Capacity 300 Sight Range 16 Robot Scan Range 14 Terrain Scan Density 10 Evasion (%) 53 Recoil Reduction 2 Item Schematics ----------------- None Robot Schematics ------------------ None Fabricated ------------ Nothing Alien Tech Used ----------------- None Achievements -------------- None Challenges ------------ None Game ------ Seed MyomerSwordRailgun Manual? 0 Play Time 00:07:53 Cumulative 343.3 hours Start 2022.06.21 @ 00:03:43 End 2022.06.21 @ 00:11:03 Sessions 1 Manual Loads 0 Difficulty Rogue Special Mode None Game No. 612 Rogue 457 Adventurer 148 Explorer 7 Win Type - Total 12 Types 10/0/1/1/0/0/0/0/0 Lore% 75 Gallery% 87 Achievement% 68 Wizard Run 0 Options --------- ASCII 0 Keyboard 0 Movement Numpad Keybinds 0 Fullscreen 1 Font 18/SmallcapsGlow Map View 76x50 Tactical HUD 1 Map Filters NONE Filters NONE Steam 1 RUN: 91b8f6e0-daa4-4e29-a2b8-638d6eb0c1a7